[Event "*** Titled Tuesday Blitz"]
[Site "Chess.com"]
[Date "2020.03.03"]
[Round "7"]
[White "GukeshDommaraju"]
[Black "M1711"]
[Result "1-0"]
[WhiteElo "2655"]
[BlackElo "2537"]
[TimeControl "180+1"]
[EndTime "10:14:30 PST"]
[Termination "GukeshDommaraju won on time"]

1. Nf3 {[%clk 0:03:00.9]} 1... c5 {[%clk 0:02:58.7]} 2. e4 {[%clk 0:02:58.6]}
2... e6 {[%clk 0:02:58.3]} 3. g3 {[%clk 0:02:56.5]} 3... Nc6 {[%clk 0:02:58.2]}
4. Bg2 {[%clk 0:02:56.2]} 4... Nf6 {[%clk 0:02:57.8]} 5. Qe2 {[%clk 0:02:56.3]}
5... e5 {[%clk 0:02:57]} 6. O-O {[%clk 0:02:55]} 6... Be7 {[%clk 0:02:57.1]} 7.
c3 {[%clk 0:02:54.7]} 7... O-O {[%clk 0:02:56.4]} 8. Rd1 {[%clk 0:02:54.8]} 8...
Re8 {[%clk 0:02:53.9]} 9. Na3 {[%clk 0:02:53.4]} 9... Bf8 {[%clk 0:02:52.3]} 10.
d3 {[%clk 0:02:50.9]} 10... d5 {[%clk 0:02:36.8]} 11. exd5 {[%clk 0:02:50.5]}
11... Nxd5 {[%clk 0:02:34]} 12. h3 {[%clk 0:02:50.8]} 12... f6 {[%clk
0:02:25.2]} 13. Nc4 {[%clk 0:02:46.3]} 13... Be6 {[%clk 0:02:17.9]} 14. a4
{[%clk 0:02:45.4]} 14... Qd7 {[%clk 0:02:15.3]} 15. Qf1 {[%clk 0:02:45.3]} 15...
Rad8 {[%clk 0:02:13.6]} 16. a5 {[%clk 0:02:38.6]} 16... Nxc3 {[%clk 0:01:54.4]}
17. Ncxe5 {[%clk 0:02:36.7]} 17... fxe5 {[%clk 0:01:44.1]} 18. bxc3 {[%clk
0:02:35.3]} 18... Bf5 {[%clk 0:01:34.2]} 19. Bg5 {[%clk 0:02:14.5]} 19... Be7
{[%clk 0:01:31.2]} 20. Bxe7 {[%clk 0:02:02.5]} 20... Rxe7 {[%clk 0:01:32.1]} 21.
Ne1 {[%clk 0:01:53.6]} 21... c4 {[%clk 0:01:30.9]} 22. d4 {[%clk 0:01:38]} 22...
exd4 {[%clk 0:01:22.2]} 23. Qxc4+ {[%clk 0:01:37.3]} 23... Be6 {[%clk
0:01:21.4]} 24. Qc5 {[%clk 0:01:29.3]} 24... Bxh3 {[%clk 0:01:15.4]} 25. Bxc6
{[%clk 0:01:06.8]} 25... bxc6 {[%clk 0:01:08.7]} 26. Rxd4 {[%clk 0:01:04.9]}
26... Qe8 {[%clk 0:01:06.6]} 27. Rxd8 {[%clk 0:01:01.7]} 27... Qxd8 {[%clk
0:01:07.5]} 28. Qxc6 {[%clk 0:00:58.7]} 28... Rc7 {[%clk 0:00:47.2]} 29. Qf3
{[%clk 0:00:50.6]} 29... Rf7 {[%clk 0:00:46.6]} 30. Qe3 {[%clk 0:00:48.5]} 30...
Re7 {[%clk 0:00:41.1]} 31. Qf3 {[%clk 0:00:39.6]} 31... Rf7 {[%clk 0:00:38.5]}
32. Qh1 {[%clk 0:00:35.6]} 32... Bg4 {[%clk 0:00:26]} 33. Qe4 {[%clk 0:00:33.3]}
33... Qd2 {[%clk 0:00:17.6]} 34. Qe3 {[%clk 0:00:12.2]} 34... Qb2 {[%clk
0:00:11.8]} 35. Ra4 {[%clk 0:00:10.1]} 35... Bh3 {[%clk 0:00:05.7]} 36. Rh4
{[%clk 0:00:08.5]} 36... Bf5 {[%clk 0:00:04.5]} 37. Rd4 {[%clk 0:00:08.2]} 37...
h6 {[%clk 0:00:04.8]} 38. Rb4 {[%clk 0:00:07.2]} 38... Qa1 {[%clk 0:00:04.6]}
39. Kh2 {[%clk 0:00:06.8]} 39... Kh7 {[%clk 0:00:02.8]} 40. Nf3 {[%clk
0:00:06.5]} 40... Rf6 {[%clk 0:00:03.1]} 41. Rh4 {[%clk 0:00:06]} 41... Bg6
{[%clk 0:00:03.3]} 42. Ng5+ {[%clk 0:00:06]} 42... Kg8 {[%clk 0:00:02.2]} 43.
Ne4 {[%clk 0:00:04.6]} 43... Qb2 {[%clk 0:00:02.6]} 44. Nxf6+ {[%clk 0:00:04.3]}
44... gxf6 {[%clk 0:00:03.5]} 45. Rxh6 {[%clk 0:00:04.7]} 45... Kf7 {[%clk
0:00:04.4]} 46. Rh4 {[%clk 0:00:04.7]} 46... Qb1 {[%clk 0:00:02.5]} 47. Qxa7+
{[%clk 0:00:04.2]} 47... Ke6 {[%clk 0:00:02.8]} 48. Rf4 {[%clk 0:00:04.2]} 48...
Be4 {[%clk 0:00:02.6]} 49. Qb6+ {[%clk 0:00:04.1]} 49... Kf7 {[%clk 0:00:01.9]}
50. Qxb1 {[%clk 0:00:03.6]} 1-0

[Event "*** Titled Tuesday Blitz"]
[Site "Chess.com"]
[Date "2020.03.03"]
[Round "7"]
[White "ChainsOfFantasia"]
[Black "Andrei_Belozerov"]
[Result "0-1"]
[WhiteElo "2534"]
[BlackElo "2657"]
[TimeControl "180+1"]
[EndTime "10:14:30 PST"]
[Termination "Andrei_Belozerov won by resignation"]

1. d4 {[%clk 0:03:00.9]} 1... d5 {[%clk 0:02:57.2]} 2. Nf3 {[%clk 0:03:01]} 2...
Nf6 {[%clk 0:02:56.7]} 3. c4 {[%clk 0:03:00.9]} 3... c6 {[%clk 0:02:57]} 4. cxd5
{[%clk 0:02:59.2]} 4... cxd5 {[%clk 0:02:56.9]} 5. Nc3 {[%clk 0:02:59]} 5... Nc6
{[%clk 0:02:57.1]} 6. Bf4 {[%clk 0:02:59.4]} 6... Bf5 {[%clk 0:02:57.1]} 7. e3
{[%clk 0:02:58.4]} 7... e6 {[%clk 0:02:57.3]} 8. Bd3 {[%clk 0:02:58.8]} 8...
Bxd3 {[%clk 0:02:56.4]} 9. Qxd3 {[%clk 0:02:59.7]} 9... Be7 {[%clk 0:02:56.4]}
10. O-O {[%clk 0:03:00]} 10... O-O {[%clk 0:02:56.5]} 11. Rac1 {[%clk
0:03:00.3]} 11... Rc8 {[%clk 0:02:55.7]} 12. a3 {[%clk 0:02:59.8]} 12... Nd7
{[%clk 0:02:55.2]} 13. e4 {[%clk 0:02:58.3]} 13... dxe4 {[%clk 0:02:53.9]} 14.
Qxe4 {[%clk 0:02:57.6]} 14... Nf6 {[%clk 0:02:53.5]} 15. Qd3 {[%clk 0:02:57.1]}
15... Nd5 {[%clk 0:02:53]} 16. Bd2 {[%clk 0:02:52.2]} 16... Nxc3 {[%clk
0:02:43.1]} 17. Rxc3 {[%clk 0:02:50.2]} 17... Qd5 {[%clk 0:02:39.3]} 18. Rfc1
{[%clk 0:02:47.8]} 18... Rfd8 {[%clk 0:02:37.6]} 19. h3 {[%clk 0:02:47.9]} 19...
h6 {[%clk 0:02:29.2]} 20. Be3 {[%clk 0:02:45.5]} 20... Bf6 {[%clk 0:02:18.9]}
21. Rc5 {[%clk 0:02:39.2]} 21... Qd7 {[%clk 0:02:18.2]} 22. Qc2 {[%clk
0:02:20.5]} 22... Ne7 {[%clk 0:02:01.4]} 23. Ne5 {[%clk 0:02:12.6]} 23... Bxe5
{[%clk 0:01:58.6]} 24. dxe5 {[%clk 0:02:09.8]} 24... Rxc5 {[%clk 0:01:50.6]} 25.
Qxc5 {[%clk 0:02:08.9]} 25... Rc8 {[%clk 0:01:41.1]} 26. Qd6 {[%clk 0:02:06]}
26... Rxc1+ {[%clk 0:01:38.5]} 27. Bxc1 {[%clk 0:02:06.9]} 27... Qxd6 {[%clk
0:01:25]} 28. exd6 {[%clk 0:02:07.8]} 28... Nc6 {[%clk 0:01:24.7]} 29. b4 {[%clk
0:02:08]} 29... b5 {[%clk 0:01:10.7]} 30. Kf1 {[%clk 0:02:00.8]} 30... Kf8
{[%clk 0:01:08.4]} 31. Be3 {[%clk 0:02:01.2]} 31... Ke8 {[%clk 0:01:06.7]} 32.
Ke2 {[%clk 0:02:01.8]} 32... Kd7 {[%clk 0:01:04.4]} 33. Bc5 {[%clk 0:02:01.7]}
33... h5 {[%clk 0:00:51.4]} 34. f4 {[%clk 0:01:57.9]} 34... a6 {[%clk 0:00:38]}
35. g4 {[%clk 0:01:51.8]} 35... hxg4 {[%clk 0:00:36]} 36. hxg4 {[%clk
0:01:52.7]} 36... Nd8 {[%clk 0:00:36.3]} 37. Kd2 {[%clk 0:01:45.8]} 37... Nb7
{[%clk 0:00:35.7]} 38. Kd3 {[%clk 0:01:42.7]} 38... Nxd6 {[%clk 0:00:35.5]} 39.
Kd4 {[%clk 0:01:40.9]} 39... f6 {[%clk 0:00:32.9]} 40. g5 {[%clk 0:01:38]} 40...
Kc6 {[%clk 0:00:32.4]} 41. gxf6 {[%clk 0:01:20.4]} 41... gxf6 {[%clk 0:00:31.4]}
42. Ba7 {[%clk 0:01:11.5]} 42... Nf5+ {[%clk 0:00:27.9]} 43. Ke4 {[%clk
0:01:10.7]} 43... Nd6+ {[%clk 0:00:24.8]} 44. Kd4 {[%clk 0:01:09.2]} 44... Nc4
{[%clk 0:00:25.1]} 45. a4 {[%clk 0:01:08.3]} 45... e5+ {[%clk 0:00:25.1]} 46.
fxe5 {[%clk 0:01:06.3]} 46... fxe5+ {[%clk 0:00:25.2]} 47. Kc3 {[%clk
0:00:36.4]} 47... Kd5 {[%clk 0:00:22.8]} 48. axb5 {[%clk 0:00:36.7]} 48... axb5
{[%clk 0:00:22.3]} 49. Bf2 {[%clk 0:00:37.2]} 49... Ke4 {[%clk 0:00:22.3]} 50.
Bc5 {[%clk 0:00:35.4]} 50... Kf3 {[%clk 0:00:19.7]} 51. Kd3 {[%clk 0:00:32]}
51... e4+ {[%clk 0:00:18.9]} 52. Kc2 {[%clk 0:00:25.3]} 52... e3 {[%clk
0:00:18.7]} 53. Be7 {[%clk 0:00:22.2]} 53... Ke4 {[%clk 0:00:17.4]} 54. Kc3
{[%clk 0:00:20.9]} 54... Ne5 {[%clk 0:00:16.4]} 55. Bh4 {[%clk 0:00:19.1]} 55...
Nf3 {[%clk 0:00:16.3]} 56. Bg3 {[%clk 0:00:19.2]} 56... e2 {[%clk 0:00:16.3]}
0-1

[Event "*** Titled Tuesday Blitz"]
[Site "Chess.com"]
[Date "2020.03.03"]
[Round "7"]
[White "hongnhung1234"]
[Black "Safar_From_Afar"]
[Result "0-1"]
[WhiteElo "2236"]
[BlackElo "2143"]
[TimeControl "180+1"]
[EndTime "10:14:44 PST"]
[Termination "Safar_From_Afar won by checkmate"]

1. e4 {[%clk 0:03:00.9]} 1... c5 {[%clk 0:02:59.9]} 2. Nc3 {[%clk 0:03:00.7]}
2... g6 {[%clk 0:02:56.1]} 3. f4 {[%clk 0:03:00.6]} 3... Bg7 {[%clk 0:02:55.5]}
4. Nf3 {[%clk 0:03:00.9]} 4... Nc6 {[%clk 0:02:55.3]} 5. Bc4 {[%clk 0:03:01.1]}
5... e6 {[%clk 0:02:53.4]} 6. O-O {[%clk 0:03:01.3]} 6... Nge7 {[%clk
0:02:49.7]} 7. d3 {[%clk 0:03:00.7]} 7... d5 {[%clk 0:02:47.6]} 8. Bb3 {[%clk
0:03:00.7]} 8... O-O {[%clk 0:02:43.9]} 9. Qe1 {[%clk 0:03:00.7]} 9... Nd4
{[%clk 0:02:39.2]} 10. Nxd4 {[%clk 0:03:00.3]} 10... cxd4 {[%clk 0:02:38.8]} 11.
Ne2 {[%clk 0:03:00.3]} 11... a5 {[%clk 0:02:35]} 12. a3 {[%clk 0:02:56.7]} 12...
b6 {[%clk 0:02:33.2]} 13. Ng3 {[%clk 0:02:55.6]} 13... Ba6 {[%clk 0:02:32.2]}
14. Rf3 {[%clk 0:02:54]} 14... dxe4 {[%clk 0:02:31.5]} 15. dxe4 {[%clk
0:02:54.9]} 15... Rc8 {[%clk 0:02:20.5]} 16. f5 {[%clk 0:02:52.1]} 16... exf5
{[%clk 0:02:14]} 17. Bg5 {[%clk 0:02:47]} 17... h6 {[%clk 0:02:09.7]} 18. Bxe7
{[%clk 0:02:45.9]} 18... Qxe7 {[%clk 0:02:09.6]} 19. exf5 {[%clk 0:02:46.2]}
19... Qxe1+ {[%clk 0:01:49.4]} 20. Rxe1 {[%clk 0:02:47.1]} 20... Bc4 {[%clk
0:01:47]} 21. f6 {[%clk 0:02:31.2]} 21... Bh8 {[%clk 0:01:42.5]} 22. Rd1 {[%clk
0:01:48.3]} 22... d3 {[%clk 0:01:38.2]} 23. Rdxd3 {[%clk 0:00:35.3]} 23... Bxd3
{[%clk 0:01:35.2]} 24. cxd3 {[%clk 0:00:35.1]} 24... Rc6 {[%clk 0:01:26.7]} 25.
Ne4 {[%clk 0:00:34.1]} 25... Re8 {[%clk 0:01:19.6]} 26. Kf2 {[%clk 0:00:26.5]}
26... Rxe4 {[%clk 0:01:10.5]} 27. dxe4 {[%clk 0:00:27.4]} 27... Rxf6 {[%clk
0:01:07.9]} 28. Ke3 {[%clk 0:00:21.3]} 28... Rxf3+ {[%clk 0:01:05.4]} 29. gxf3
{[%clk 0:00:22.2]} 29... Bxb2 {[%clk 0:01:03.8]} 30. a4 {[%clk 0:00:22.5]} 30...
g5 {[%clk 0:00:59.1]} 31. Bc4 {[%clk 0:00:20.8]} 31... Kg7 {[%clk 0:00:55.6]}
32. Bd5 {[%clk 0:00:20.1]} 32... Kf6 {[%clk 0:00:44.8]} 33. Bc4 {[%clk
0:00:18.4]} 33... h5 {[%clk 0:00:32.1]} 34. Bd5 {[%clk 0:00:14.9]} 34... Ke7
{[%clk 0:00:25.8]} 35. Kd3 {[%clk 0:00:14.5]} 35... f6 {[%clk 0:00:24.9]} 36.
Kc4 {[%clk 0:00:14.4]} 36... Kd6 {[%clk 0:00:22.8]} 37. Kb5 {[%clk 0:00:13.9]}
37... Bd4 {[%clk 0:00:22.9]} 38. Kc4 {[%clk 0:00:13.9]} 38... Bc5 {[%clk
0:00:20.8]} 39. Kd3 {[%clk 0:00:14]} 39... Ke5 {[%clk 0:00:21.1]} 40. Ke2 {[%clk
0:00:13]} 40... Kd4 {[%clk 0:00:20.3]} 41. Bc6 {[%clk 0:00:12.5]} 41... Ke5
{[%clk 0:00:17]} 42. Bb5 {[%clk 0:00:12.2]} 42... Kf4 {[%clk 0:00:17]} 43. Bc6
{[%clk 0:00:11.4]} 43... h4 {[%clk 0:00:13.4]} 44. h3 {[%clk 0:00:10.3]} 44...
Kg3 {[%clk 0:00:12.8]} 45. Bd7 {[%clk 0:00:10.3]} 45... Bb4 {[%clk 0:00:10.5]}
46. Be6 {[%clk 0:00:09.7]} 46... Bc5 {[%clk 0:00:11.4]} 47. Bf5 {[%clk
0:00:09.7]} 47... Kg2 {[%clk 0:00:12]} 48. Be6 {[%clk 0:00:09.4]} 48... b5
{[%clk 0:00:07.4]} 49. axb5 {[%clk 0:00:09.1]} 49... a4 {[%clk 0:00:07.9]} 50.
Bg4 {[%clk 0:00:05.3]} 50... a3 {[%clk 0:00:07.5]} 51. Be6 {[%clk 0:00:05.7]}
51... a2 {[%clk 0:00:05.9]} 52. Bxa2 {[%clk 0:00:06]} 52... Kxh3 {[%clk
0:00:06.2]} 53. Kf1 {[%clk 0:00:06.1]} 53... Kg3 {[%clk 0:00:06.1]} 54. Bd5
{[%clk 0:00:05.5]} 54... h3 {[%clk 0:00:03]} 55. f4 {[%clk 0:00:05.3]} 55...
Kxf4 {[%clk 0:00:02.3]} 56. e5 {[%clk 0:00:04.9]} 56... Kxe5 {[%clk 0:00:02.3]}
57. Bc6 {[%clk 0:00:04.9]} 57... f5 {[%clk 0:00:02.5]} 58. Ke2 {[%clk
0:00:04.8]} 58... g4 {[%clk 0:00:03]} 59. Kf1 {[%clk 0:00:04]} 59... Kf4 {[%clk
0:00:03.6]} 60. Bh1 {[%clk 0:00:03.9]} 60... Kg3 {[%clk 0:00:03.8]} 61. Bc6
{[%clk 0:00:04]} 61... f4 {[%clk 0:00:04.2]} 62. Bd5 {[%clk 0:00:03.6]} 62... f3
{[%clk 0:00:04.5]} 63. b6 {[%clk 0:00:04]} 63... h2 {[%clk 0:00:04.1]} 64. Bxf3
{[%clk 0:00:02.3]} 64... gxf3 {[%clk 0:00:03.2]} 65. b7 {[%clk 0:00:01.4]} 65...
h1=Q# {[%clk 0:00:03.5]} 0-1

[Event "*** Titled Tuesday Blitz"]
[Site "Chess.com"]
[Date "2020.03.03"]
[Round "7"]
[White "Quiet_Desperation"]
[Black "Funkmaus"]
[Result "1-0"]
[WhiteElo "2055"]
[BlackElo "2203"]
[TimeControl "180+1"]
[EndTime "10:14:47 PST"]
[Termination "Quiet_Desperation won by resignation"]

1. e4 {[%clk 0:03:00.9]} 1... c6 {[%clk 0:02:59.4]} 2. d4 {[%clk 0:03:00.6]}
2... d5 {[%clk 0:03:00.1]} 3. e5 {[%clk 0:03:00.9]} 3... Bf5 {[%clk 0:02:59.6]}
4. h4 {[%clk 0:03:01.1]} 4... h5 {[%clk 0:02:59.2]} 5. Bd3 {[%clk 0:03:00.4]}
5... Bxd3 {[%clk 0:02:58.7]} 6. Qxd3 {[%clk 0:03:01.3]} 6... Qa5+ {[%clk
0:02:58.8]} 7. c3 {[%clk 0:03:00.8]} 7... Qa6 {[%clk 0:02:59.4]} 8. Qe3 {[%clk
0:02:53.1]} 8... e6 {[%clk 0:02:55.8]} 9. Ne2 {[%clk 0:02:52.9]} 9... Ne7 {[%clk
0:02:52.1]} 10. Ng3 {[%clk 0:02:52.4]} 10... g6 {[%clk 0:02:47.4]} 11. Nd2
{[%clk 0:02:49.1]} 11... Bh6 {[%clk 0:02:46.2]} 12. Qf3 {[%clk 0:02:46.6]} 12...
c5 {[%clk 0:02:35.9]} 13. Nb3 {[%clk 0:02:39.1]} 13... Bxc1 {[%clk 0:02:29.3]}
14. Nxc1 {[%clk 0:02:36.5]} 14... cxd4 {[%clk 0:02:23.5]} 15. cxd4 {[%clk
0:02:28.4]} 15... Nbc6 {[%clk 0:02:18.8]} 16. Nb3 {[%clk 0:02:24.4]} 16... Qc4
{[%clk 0:01:59.3]} 17. Ne2 {[%clk 0:01:58.8]} 17... Nf5 {[%clk 0:01:53.8]} 18.
Rd1 {[%clk 0:01:48.2]} 18... Qb4+ {[%clk 0:01:40.6]} 19. Qc3 {[%clk 0:01:38.6]}
19... Rc8 {[%clk 0:01:37.5]} 20. Kf1 {[%clk 0:01:32.4]} 20... O-O {[%clk
0:01:29.5]} 21. g3 {[%clk 0:01:30.1]} 21... a5 {[%clk 0:01:23.3]} 22. Kg2 {[%clk
0:01:18.8]} 22... b6 {[%clk 0:01:10]} 23. a3 {[%clk 0:01:16.4]} 23... Qb5 {[%clk
0:01:03.1]} 24. Qd3 {[%clk 0:01:11.2]} 24... Qxd3 {[%clk 0:00:59.9]} 25. Rxd3
{[%clk 0:01:10.7]} 25... a4 {[%clk 0:01:00.4]} 26. Nd2 {[%clk 0:01:07.9]} 26...
Na5 {[%clk 0:00:55.1]} 27. Rc3 {[%clk 0:00:56.1]} 27... Rxc3 {[%clk 0:00:33.3]}
28. bxc3 {[%clk 0:00:50.8]} 28... Rc8 {[%clk 0:00:32]} 29. Rc1 {[%clk
0:00:49.9]} 29... Nc4 {[%clk 0:00:30.1]} 30. Nxc4 {[%clk 0:00:49.3]} 30... Rxc4
{[%clk 0:00:30.9]} 31. Rb1 {[%clk 0:00:40.9]} 31... Rc6 {[%clk 0:00:30.7]} 32.
Rb4 {[%clk 0:00:39]} 32... Rc4 {[%clk 0:00:22.6]} 33. Rxb6 {[%clk 0:00:35.2]}
33... Kg7 {[%clk 0:00:20.4]} 34. Rb4 {[%clk 0:00:33.2]} 34... Rc7 {[%clk
0:00:19.8]} 35. Rxa4 {[%clk 0:00:32.3]} 35... Ne7 {[%clk 0:00:19.5]} 36. Ra8
{[%clk 0:00:22.7]} 36... Nc6 {[%clk 0:00:17.8]} 37. a4 {[%clk 0:00:21]} 37... f6
{[%clk 0:00:15.3]} 38. f4 {[%clk 0:00:20]} 38... g5 {[%clk 0:00:14.1]} 39. exf6+
{[%clk 0:00:18.3]} 39... Kxf6 {[%clk 0:00:14.8]} 40. hxg5+ {[%clk 0:00:18.2]}
40... Kf5 {[%clk 0:00:15.4]} 41. Kf3 {[%clk 0:00:15.1]} 41... Ne7 {[%clk
0:00:10.4]} 42. Rf8+ {[%clk 0:00:14]} 42... Kg6 {[%clk 0:00:09.9]} 43. Rf6+
{[%clk 0:00:13.5]} 43... Kg7 {[%clk 0:00:09.9]} 44. Rxe6 {[%clk 0:00:13.6]}
44... Nf5 {[%clk 0:00:10.1]} 45. Re5 {[%clk 0:00:10.5]} 45... Kg6 {[%clk
0:00:09.1]} 46. Rxd5 {[%clk 0:00:08.8]} 46... Ra7 {[%clk 0:00:08.8]} 47. a5
{[%clk 0:00:08.5]} 47... Ne7 {[%clk 0:00:08.6]} 48. Rd6+ {[%clk 0:00:06.7]}
48... Kf7 {[%clk 0:00:08.2]} 49. Rf6+ {[%clk 0:00:03.8]} 49... Kg7 {[%clk
0:00:07.4]} 50. a6 {[%clk 0:00:03.1]} 50... Ng6 {[%clk 0:00:07.9]} 51. Rxg6+
{[%clk 0:00:02.7]} 51... Kxg6 {[%clk 0:00:08.1]} 52. d5 {[%clk 0:00:03.1]} 52...
Rxa6 {[%clk 0:00:08.1]} 53. c4 {[%clk 0:00:04]} 53... Ra3+ {[%clk 0:00:08.5]}
54. Ke4 {[%clk 0:00:03.2]} 54... Ra2 {[%clk 0:00:09.4]} 55. Nd4 {[%clk
0:00:03.2]} 55... Rg2 {[%clk 0:00:09.1]} 56. d6 {[%clk 0:00:02.7]} 56... Rxg3
{[%clk 0:00:09.1]} 57. Kd5 {[%clk 0:00:02.9]} 57... Rg1 {[%clk 0:00:10]} 58. d7
{[%clk 0:00:03.2]} 58... Rd1 {[%clk 0:00:10.3]} 59. d8=Q {[%clk 0:00:03.2]}
59... Rd2 {[%clk 0:00:08.5]} 60. Ke5 {[%clk 0:00:03]} 60... h4 {[%clk
0:00:08.8]} 61. Qf6+ {[%clk 0:00:03.4]} 61... Kh5 {[%clk 0:00:09.1]} 62. Nf5
{[%clk 0:00:03.7]} 62... Re2+ {[%clk 0:00:08.6]} 63. Kd6 {[%clk 0:00:03.2]}
63... Kg4 {[%clk 0:00:08.8]} 64. Nh6+ {[%clk 0:00:02.8]} 64... Kf3 {[%clk
0:00:08.9]} 65. g6 {[%clk 0:00:03.7]} 65... Rd2+ {[%clk 0:00:09.4]} 66. Ke6
{[%clk 0:00:03.6]} 66... Rc2 {[%clk 0:00:10.1]} 67. Kf7 {[%clk 0:00:03.9]} 67...
Re2 {[%clk 0:00:11]} 68. g7 {[%clk 0:00:04.1]} 68... Rg2 {[%clk 0:00:10.9]} 69.
g8=Q {[%clk 0:00:04]} 69... Rg3 {[%clk 0:00:11.8]} 70. Qxg3+ {[%clk 0:00:03.4]}
70... Kxg3 {[%clk 0:00:11.8]} 71. Qg5+ {[%clk 0:00:04.3]} 71... Kh3 {[%clk
0:00:11.8]} 72. Qg4+ {[%clk 0:00:04.5]} 72... Kh2 {[%clk 0:00:11.4]} 73. Qxh4+
{[%clk 0:00:05.4]} 73... Kg1 {[%clk 0:00:12.2]} 74. Qg4+ {[%clk 0:00:05.8]}
74... Kf2 {[%clk 0:00:12.9]} 75. f5 {[%clk 0:00:06.7]} 75... Ke1 {[%clk
0:00:13.6]} 76. f6 {[%clk 0:00:07.2]} 76... Kd2 {[%clk 0:00:14.5]} 77. Ke6
{[%clk 0:00:07.7]} 77... Ke3 {[%clk 0:00:15.4]} 78. f7 {[%clk 0:00:08.2]} 1-0

[Event "*** Titled Tuesday Blitz"]
[Site "Chess.com"]
[Date "2020.03.03"]
[Round "7"]
[White "HrvojeZagreb"]
[Black "ChristianAlm"]
[Result "1-0"]
[WhiteElo "2221"]
[BlackElo "2330"]
[TimeControl "180+1"]
[EndTime "10:14:56 PST"]
[Termination "HrvojeZagreb won on time"]

1. d4 {[%clk 0:03:00.9]} 1... d5 {[%clk 0:02:59.4]} 2. Bf4 {[%clk 0:03:01]} 2...
Nf6 {[%clk 0:02:58.7]} 3. e3 {[%clk 0:03:01.2]} 3... g6 {[%clk 0:02:55.9]} 4. h4
{[%clk 0:03:00.2]} 4... Bg7 {[%clk 0:02:56.8]} 5. h5 {[%clk 0:03:00.5]} 5... O-O
{[%clk 0:02:52.1]} 6. Nc3 {[%clk 0:03:00.1]} 6... Nxh5 {[%clk 0:02:47.1]} 7.
Rxh5 {[%clk 0:02:59.5]} 7... gxh5 {[%clk 0:02:48]} 8. Qxh5 {[%clk 0:03:00.1]}
8... c6 {[%clk 0:02:41.2]} 9. Bd3 {[%clk 0:02:59.6]} 9... f5 {[%clk 0:02:39.6]}
10. Nf3 {[%clk 0:02:57.1]} 10... Qe8 {[%clk 0:02:37.1]} 11. Qh2 {[%clk
0:02:56.9]} 11... Nd7 {[%clk 0:02:26.6]} 12. O-O-O {[%clk 0:02:54.3]} 12... Nf6
{[%clk 0:02:24.7]} 13. Ne5 {[%clk 0:02:37.7]} 13... Ne4 {[%clk 0:02:02.2]} 14.
g4 {[%clk 0:02:30.8]} 14... e6 {[%clk 0:01:38.2]} 15. Rh1 {[%clk 0:02:25.2]}
15... h5 {[%clk 0:01:26.9]} 16. gxh5 {[%clk 0:02:16.6]} 16... Bxe5 {[%clk
0:01:24.7]} 17. Bxe5 {[%clk 0:02:13.9]} 17... Kh7 {[%clk 0:01:24.3]} 18. Ne2
{[%clk 0:02:03.3]} 18... Rg8 {[%clk 0:01:19.9]} 19. Nf4 {[%clk 0:02:01.7]} 19...
Qf7 {[%clk 0:01:17.2]} 20. Ng6 {[%clk 0:02:01.1]} 20... Bd7 {[%clk 0:01:03.8]}
21. Qh4 {[%clk 0:01:57.3]} 21... b6 {[%clk 0:00:49.1]} 22. f3 {[%clk 0:01:56.8]}
22... c5 {[%clk 0:00:34.4]} 23. fxe4 {[%clk 0:01:53.9]} 23... dxe4 {[%clk
0:00:33.6]} 24. Be2 {[%clk 0:01:51.9]} 24... cxd4 {[%clk 0:00:32.6]} 25. exd4
{[%clk 0:01:49.5]} 25... Rac8 {[%clk 0:00:15.9]} 26. Qe7 {[%clk 0:01:39.8]}
26... Qxe7 {[%clk 0:00:13.9]} 27. Nxe7 {[%clk 0:01:40.7]} 27... Rg2 {[%clk
0:00:13.5]} 28. Nxc8 {[%clk 0:01:36.4]} 28... Rxe2 {[%clk 0:00:12.2]} 29. Nxa7
{[%clk 0:01:33.5]} 29... Rf2 {[%clk 0:00:09.7]} 30. Rh4 {[%clk 0:01:29.3]} 30...
e3 {[%clk 0:00:08.7]} 31. Rh1 {[%clk 0:01:18.6]} 31... f4 {[%clk 0:00:08.8]} 32.
Re1 {[%clk 0:01:16.8]} 32... Be8 {[%clk 0:00:08.4]} 33. Bxf4 {[%clk 0:01:13.8]}
33... Rxf4 {[%clk 0:00:09.3]} 34. Rxe3 {[%clk 0:01:14.1]} 34... Rxd4 {[%clk
0:00:09.1]} 35. Rxe6 {[%clk 0:01:13.5]} 35... Bxh5 {[%clk 0:00:09.5]} 36. c3
{[%clk 0:01:07]} 36... Rd1+ {[%clk 0:00:06.7]} 37. Kc2 {[%clk 0:01:07.2]} 37...
Ra1 {[%clk 0:00:07.6]} 38. Rxb6 {[%clk 0:01:02.2]} 38... Rxa2 {[%clk 0:00:02.3]}
39. Nb5 {[%clk 0:00:56.8]} 39... Ra1 {[%clk 0:00:03]} 40. Nd4 {[%clk 0:00:55.8]}
40... Bg6+ {[%clk 0:00:03.9]} 41. Kb3 {[%clk 0:00:52.9]} 41... Bf7+ {[%clk
0:00:04.2]} 42. Kb4 {[%clk 0:00:51.1]} 42... Rc1 {[%clk 0:00:05.1]} 43. b3
{[%clk 0:00:49.3]} 43... Rf1 {[%clk 0:00:06]} 44. Rb7 {[%clk 0:00:48.9]} 44...
Rf4 {[%clk 0:00:06.1]} 45. Kc5 {[%clk 0:00:46.2]} 45... Kg8 {[%clk 0:00:06.2]}
46. c4 {[%clk 0:00:45.2]} 46... Kf8 {[%clk 0:00:06.5]} 47. b4 {[%clk 0:00:38]}
47... Rh4 {[%clk 0:00:06.8]} 48. b5 {[%clk 0:00:37.3]} 48... Ke8 {[%clk
0:00:06]} 49. Rb8+ {[%clk 0:00:34.7]} 49... Kd7 {[%clk 0:00:05.3]} 50. Rb7+
{[%clk 0:00:32.2]} 50... Ke8 {[%clk 0:00:04.9]} 51. Rb8+ {[%clk 0:00:32.3]}
51... Kd7 {[%clk 0:00:04.6]} 52. Rf8 {[%clk 0:00:32.2]} 52... Rh5+ {[%clk
0:00:03.2]} 53. Kb4 {[%clk 0:00:31.8]} 53... Ke7 {[%clk 0:00:04.1]} 54. Rb8
{[%clk 0:00:30.6]} 54... Rh4 {[%clk 0:00:05]} 55. Kc3 {[%clk 0:00:28.6]} 55...
Rh3+ {[%clk 0:00:04.4]} 56. Kd2 {[%clk 0:00:28.8]} 56... Bxc4 {[%clk 0:00:03.3]}
57. b6 {[%clk 0:00:27.5]} 57... Rd3+ {[%clk 0:00:03.4]} 58. Kc2 {[%clk
0:00:26.3]} 58... Rxd4 {[%clk 0:00:04.3]} 59. Kc3 {[%clk 0:00:25.5]} 59... Rh4
{[%clk 0:00:04.1]} 60. Rc8 {[%clk 0:00:20.5]} 60... Bd5 {[%clk 0:00:03.2]} 61.
Rc7+ {[%clk 0:00:20.3]} 61... Kd6 {[%clk 0:00:03.3]} 62. Rg7 {[%clk 0:00:15.4]}
62... Rh3+ {[%clk 0:00:04.2]} 63. Kc2 {[%clk 0:00:14.8]} 63... Rb3 {[%clk
0:00:03.2]} 64. Rg6+ {[%clk 0:00:14]} 64... Kc5 {[%clk 0:00:03.3]} 65. Rf6
{[%clk 0:00:08.5]} 1-0